bitfinex-derivatives/quotes_SOLF0:USTF0_20251210
["timestamp","ask_amount","ask_price","bid_price","bid_amount"]
[1765352141507,4.83854699,138.64,138.63,0.04777948]
[1765352142205,3.18313813,138.65,138.63,3.17777948]
[1765352142414,0.05313813,138.65,138.63,3.17777948]
[1765352142595,3.18313813,138.65,138.63,3.17777948]
[1765352143005,0.05313813,138.65,138.63,3.17777948]
[1765352163226,3.26313813,138.65,138.63,3.17777948]
[1765352163821,0.05313813,138.65,138.63,3.17777948]
[1765352165627,3.21,138.64,138.63,0.04777948]
[1765352169721,3.21,138.64,138.63,3.34777948]
[1765352170126,3.21,138.64,138.63,0.04777948]
[1765352172728,3.29,138.62,138.59,12.29870753]
[1765352172931,3.29,138.62,138.58,12.29870753]
[1765352173523,3.29,138.61,138.58,12.29870753]
[1765352173829,3.33590553,138.61,138.58,3.35438675]
[1765352175621,9.82920553,138.61,138.58,0.05438675]
[1765352175932,3.29,138.6,138.58,0.05438675]
[1765352181130,3.29,138.59,138.58,0.05438675]
[1765352182032,3.33590553,138.61,138.58,3.35438675]
[1765352182230,0.04590553,138.61,138.58,3.35438675]
[1765352183533,0.04590553,138.61,138.58,9.84878675]
[1765352183733,0.04590553,138.61,138.59,3.3]
[1765352186236,0.04590553,138.61,138.59,9.7939]
[1765352186425,0.04590553,138.61,138.6,3.3]
[1765352198850,70.8707,138.67,138.61,3.24]
[1765352199648,0.04833982,138.65,138.63,3.29297313]
[1765352201651,3.08833982,138.65,138.63,3.29297313]
[1765352201951,3.08833982,138.65,138.63,0.05297313]
[1765352203352,9.57973982,138.65,138.63,0.05297313]
[1765352203554,3.04,138.64,138.63,0.05297313]
[1765352206246,3.04,138.62,138.59,3.24]
[1765352206451,5.70975072,138.65,138.59,3.24]
[1765352207149,3.04,138.64,138.6,3.24]
[1765352207454,0.04773249,138.63,138.61,3.29160771]
[1765352210157,3.08773249,138.63,138.61,3.29160771]
[1765352215364,0.04773249,138.63,138.61,3.29160771]
[1765352216455,3.24773249,138.63,138.61,3.29160771]
[1765352219160,3.24773249,138.63,138.61,0.05160771]
[1765352220062,3.24773249,138.63,138.61,3.12160771]
[1765352220861,0.04773249,138.63,138.61,3.12160771]
[1765352221069,61.34,138.66,138.64,3.07]
[1765352221255,3.03,138.68,138.64,3.07]
[1765352221462,4.73913482,138.7,138.64,3.07]
[1765352221862,3.03,138.7,138.64,3.07]
[1765352222066,0.04599187,138.68,138.66,3.12032079]
[1765352229565,0.04599187,138.68,138.66,9.61092079]
[1765352229767,0.04599187,138.68,138.67,3.07]
[1765352242191,61.34,138.71,138.69,3.08]
[1765352242589,3.02,138.74,138.71,3.08]
[1765352242782,4.72913482,138.75,138.71,3.08]
[1765352242983,0.05415906,138.74,138.73,3.08]
[1765352243384,3.07415906,138.74,138.72,3.13548643]
[1765352243582,1.70913482,138.77,138.72,3.13548643]
[1765352244493,1.70913482,138.77,138.74,3.08]
[1765352245894,4.72913482,138.77,138.74,3.08]
[1765352246995,4.72913482,138.77,138.75,3.08]
[1765352248013,4.72913482,138.79,138.76,3.08]
[1765352248199,4.72913482,138.79,138.76,3.13006168]
[1765352248604,66.02913482,138.8,138.76,3.13006168]
[1765352249512,66.02913482,138.8,138.77,3.01]
[1765352252005,3.33,138.79,138.76,0.05006168]
[1765352252311,5.03913482,138.78,138.76,3.06006168]
[1765352252515,1.70913482,138.78,138.76,3.06006168]
[1765352254408,5.03913482,138.78,138.76,3.06006168]
[1765352255413,1.70913482,138.78,138.76,3.06006168]
[1765352257315,5.03913482,138.79,138.76,3.06006168]
[1765352258208,3.33,138.79,138.76,3.06006168]
[1765352258509,5.03913482,138.79,138.76,3.06006168]
[1765352261414,3.33,138.78,138.76,3.06006168]
[1765352261710,5.03913482,138.79,138.76,3.06006168]
[1765352262011,5.03913482,138.79,138.76,9.54596168]
[1765352262216,5.03913482,138.79,138.77,3.01]
[1765352270921,3.33,138.78,138.77,3.01]
[1765352272814,3.33,138.78,138.76,0.05006168]
[1765352273720,3.33,138.78,138.76,3.06006168]
[1765352277426,3.33,138.78,138.77,3.01]
[1765352278218,3.33,138.79,138.77,3.01]
[1765352279017,61.3,138.8,138.78,3.01]
[1765352279322,3.33,138.82,138.78,3.01]
[1765352279820,3.33,138.82,138.79,3.33]
[1765352280020,3.33,138.82,138.79,3.37836083]
[1765352280418,9.6432,138.83,138.79,3.37836083]
[1765352280621,3.16,138.82,138.79,3.37836083]
[1765352281827,3.16,138.81,138.79,3.37836083]
[1765352282624,3.16,138.81,138.79,0.04836083]
[1765352283327,3.16,138.81,138.79,3.37836083]
[1765352284528,3.16,138.81,138.79,0.04836083]
[1765352285525,3.16,138.81,138.79,3.37836083]
[1765352286919,5.82510247,138.81,138.79,0.04836083]
[1765352287130,3.16,138.8,138.79,0.04836083]
[1765352287334,3.16,138.82,138.79,3.37836083]
[1765352290435,3.16,138.82,138.8,3.03]
[1765352292640,3.17,138.83,138.8,3.03]
[1765352296642,3.17,138.83,138.81,3.03]
[1765352298539,3.17,138.83,138.8,9.5142]
[1765352302047,3.17,138.83,138.81,3.03]
[1765352302947,3.17,138.83,138.8,9.5142]
[1765352304651,3.17,138.83,138.8,3.03]
[1765352305441,3.17,138.82,138.79,3.07836083]
[1765352309843,3.01,138.81,138.79,0.04836083]
[1765352311444,9.4938,138.81,138.79,0.04836083]
[1765352311640,3.01,138.8,138.79,0.04836083]
[1765352317653,64.27,138.84,138.79,3.16836083]
[1765352318055,3.01,138.83,138.79,3.16836083]
[1765352318450,3.01,138.83,138.79,9.65286083]
[1765352318661,3.01,138.83,138.8,3.12]
[1765352321055,3.01,138.83,138.8,6.4841]
[1765352321258,61.26,138.84,138.81,3.12]
[1765352321651,12.15680247,138.86,138.82,3.12]
[1765352321860,3.01,138.87,138.84,3.12]
[1765352322364,3.01,138.88,138.84,3.12]
[1765352323155,3.01,138.88,138.85,3.12]
[1765352323370,64.27,138.89,138.85,3.12]
[1765352324659,3.01,138.88,138.85,3.12]
[1765352327252,64.27,138.89,138.86,3.12]
[1765352327457,64.27,138.89,138.86,3.1670933]
[1765352329775,61.26,138.89,138.86,3.1670933]
[1765352330267,5.67510247,138.93,138.86,3.1670933]
[1765352330466,3.01,138.93,138.88,3.12]
[1765352330759,3.01,138.93,138.89,3.17472342]
[1765352331466,3.01,138.92,138.89,3.17472342]
[1765352337675,11.19053582,138.93,138.89,3.17472342]
[1765352337864,3.01,138.92,138.89,3.17472342]
[1765352341474,3.26,138.9,138.89,0.05472342]
[1765352344174,3.26,138.87,138.82,18.58170753]
[1765352344385,4.96223582,138.85,138.83,3.1]
[1765352345076,1.70223582,138.85,138.83,3.1]
[1765352345284,1.75350619,138.85,138.83,3.14757414]
[1765352345979,0.05127037,138.85,138.84,3.1]
[1765352346183,61.22,138.9,138.84,3.1]
[1765352346184,1.70223582,138.88,138.84,3.1]
[1765352346576,66.18223582,138.9,138.84,3.1]
[1765352346781,3.26,138.91,138.87,3.1]
[1765352347279,3.26,138.91,138.88,3.09133609]
[1765352355890,3.09,138.89,138.88,0.05133609]
[1765352357691,3.09,138.89,138.83,9.5225]
[1765352357898,4.79223582,138.86,138.83,9.5225]
[1765352358080,3.09,138.85,138.83,9.5225]
[1765352358784,3.14305481,138.85,138.83,9.57389455]
[1765352358983,4.79223582,138.84,138.83,6.53389455]
[1765352359481,4.79223582,138.84,138.83,0.05139455]
[1765352363089,0.05305481,138.85,138.83,3.09139455]
[1765352363497,0.05305481,138.85,138.83,9.57409455]
[1765352363795,0.05305481,138.85,138.84,3.04]
[1765352367593,3.14305481,138.85,138.83,0.05139455]
[1765352372214,3.14305481,138.85,138.83,9.54409455]
[1765352373520,0.05305481,138.85,138.84,3.01]
[1765352376919,0.05305481,138.85,138.83,0.05139455]
[1765352376920,3.06305481,138.85,138.83,0.05139455]
[1765352377221,3.06305481,138.85,138.83,3.06139455]
[1765352378418,0.05305481,138.85,138.83,3.06139455]
[1765352378617,0.05305481,138.85,138.83,9.54419455]
[1765352378823,0.05305481,138.85,138.84,3.01]
[1765352387331,3.06305481,138.85,138.83,0.05139455]
[1765352387525,3.06305481,138.85,138.83,3.06139455]
[1765352389422,0.05305481,138.85,138.84,3.01]
[1765352393535,3.06305481,138.85,138.83,3.06139455]
[1765352396240,3.06305481,138.85,138.83,0.05139455]
[1765352397637,3.01,138.84,138.83,0.05139455]
[1765352401132,3.15,138.82,138.79,8.99870753]
[1765352401342,3.15,138.82,138.79,12.32870753]
[1765352401642,3.15,138.81,138.78,12.32870753]
[1765352402030,3.20133145,138.81,138.78,12.37937186]
[1765352402433,3.20133145,138.81,138.78,9.04937186]
[1765352402636,3.20133145,138.81,138.78,0.05066433]
[1765352405237,9.68523145,138.81,138.78,0.05066433]
[1765352405443,3.15,138.8,138.78,0.05066433]
[1765352406137,3.15,138.79,138.78,0.05066433]
[1765352407047,61.29133145,138.81,138.78,0.05066433]
[1765352407048,3.15,138.8,138.78,0.05066433]
[1765352409044,64.32133145,138.81,138.78,3.09066433]
[1765352409445,3.03,138.8,138.78,3.09066433]
[1765352417354,0.05133145,138.81,138.78,3.09066433]
[1765352418352,3.08133145,138.81,138.78,3.09066433]
[1765352420654,3.08133145,138.81,138.78,0.05066433]
[1765352420954,3.08133145,138.81,138.78,3.09066433]
[1765352421155,0.05133145,138.81,138.78,3.09066433]
[1765352421854,3.08133145,138.81,138.78,3.09066433]
[1765352425160,0.05133145,138.81,138.78,3.09066433]
[1765352425660,0.05133145,138.81,138.78,9.57576433]
[1765352425858,0.05133145,138.81,138.79,3.04]
[1765352428758,0.05133145,138.81,138.79,9.5246]
[1765352428958,0.05133145,138.81,138.8,3.04]
[1765352432863,3.26133145,138.81,138.79,3.07]
[1765352434362,0.05133145,138.81,138.79,3.07]
[1765352444566,0.05133145,138.81,138.8,3.07]
[1765352454483,0.05133145,138.81,138.8,12.06870753]
[1765352458786,6.4822,138.85,138.81,3.07]
[1765352459384,9.6622,138.85,138.81,3.07]
[1765352459791,0.04566309,138.84,138.83,3.22]
[1765352464995,67.7203,138.89,138.83,9.7027]
[1765352465200,3.18,138.88,138.84,3.22]
[1765352466086,3.18,138.88,138.85,0.05095539]
[1765352466291,3.18,138.88,138.86,3.22]
[1765352467496,64.27,138.89,138.86,3.22]
[1765352473102,61.24,138.89,138.86,3.22]
[1765352473403,4.73416157,138.9,138.86,3.22]
[1765352473904,3.03,138.89,138.86,3.22]
[1765352482709,3.03,138.87,138.85,7.16095539]
[1765352484203,4.73416157,138.86,138.85,0.05095539]
[1765352485203,3.03,138.85,138.81,3.11]
[1765352485404,3.03,138.83,138.79,8.99870753]
[1765352485600,3.03,138.81,138.79,12.10870753]
[1765352485810,3.03,138.81,138.79,3.11]
[1765352486212,3.03,138.81,138.79,3.15894054]
[1765352486414,3.07862414,138.81,138.79,3.15894054]
[1765352488230,0.04862414,138.81,138.79,3.15894054]
[1765352488409,0.04862414,138.81,138.8,3.11]
[1765352500328,3.06862414,138.81,138.8,3.11]
[1765352500522,4.77278571,138.81,138.79,0.04894054]
[1765352500719,3.02,138.8,138.79,0.04894054]
[1765352502820,11.25668571,138.81,138.79,3.36894054]
[1765352503223,3.02,138.8,138.79,0.04894054]
[1765352506428,3.02,138.8,138.79,3.36894054]
[1765352508227,3.02,138.8,138.79,0.04894054]
[1765352519737,3.21862414,138.81,138.79,3.05894054]
[1765352520633,3.21862414,138.81,138.79,0.04894054]
[1765352520837,3.17,138.8,138.79,0.04894054]
[1765352523238,3.21862414,138.81,138.79,3.05894054]
[1765352525540,3.21862414,138.81,138.79,9.54354054]
[1765352526240,3.21862414,138.81,138.79,3.05894054]
[1765352537653,3.21862414,138.81,138.79,0.04894054]
[1765352538556,9.70242414,138.81,138.79,0.04894054]
[1765352538856,3.07,138.8,138.79,0.04894054]
[1765352540752,3.07,138.8,138.79,3.21894054]
[1765352544260,3.07,138.8,138.79,0.04894054]
[1765352550573,3.07,138.8,138.79,3.34894054]
[1765352550772,3.07,138.8,138.79,0.04894054]
[1765352551074,3.04,138.79,138.77,3.3]
[1765352552068,3.04,138.79,138.77,3.35087299]
[1765352555771,3.04,138.79,138.77,0.05087299]
[1765352555772,9.5248,138.79,138.77,0.05087299]
[1765352555972,3.04,138.78,138.77,0.05087299]
[1765352560475,3.04,138.78,138.77,3.35087299]
[1765352560675,67.7448,138.79,138.77,3.35087299]
[1765352561075,70.7848,138.79,138.77,3.35087299]
[1765352562076,3.04,138.8,138.77,3.35087299]
[1765352562280,3.04,138.8,138.78,3.3]
[1765352563482,3.04,138.8,138.77,12.34958052]
[1765352563675,3.04,138.8,138.78,3.3]
[1765352564280,6.53272414,138.81,138.78,3.3]
[1765352564672,9.57272414,138.81,138.78,3.3]
[1765352565984,0.04862414,138.81,138.78,7.3]
[1765352566281,0.04862414,138.81,138.79,3.3]
[1765352574984,0.04862414,138.81,138.8,3.3]
[1765352576787,3.08862414,138.81,138.79,3.3]
[1765352579382,3.08862414,138.81,138.78,7.18]
[1765352580589,3.15,138.8,138.78,4.0]
[1765352580885,3.15,138.8,138.77,0.05087299]
[1765352581580,2.71354221,138.81,138.74,8.99870753]
[1765352581581,3.15,138.78,138.74,8.99870753]
[1765352581893,3.15,138.78,138.73,12.17870753]
[1765352582492,3.20445977,138.77,138.74,0.05349501]
[1765352582685,4.9108185,138.77,138.74,0.05349501]
[1765352582884,3.15,138.76,138.74,0.05349501]
[1765352583695,0.05445977,138.77,138.74,3.23349501]
[1765352584191,0.05445977,138.77,138.75,3.18]
[1765352585484,0.05445977,138.77,138.75,9.6664]
[1765352585691,0.05445977,138.77,138.76,3.18]
[1765352591290,3.15,138.81,138.77,3.19]
[1765352591598,3.15,138.81,138.78,3.19]
[1765352592291,3.20447499,138.81,138.78,3.23852146]
[1765352593986,3.20447499,138.81,138.79,3.19]
[1765352595004,0.05447499,138.81,138.79,9.6746]
[1765352595205,0.05447499,138.81,138.8,3.19]
[1765352596191,0.05447499,138.81,138.8,9.92147929]
[1765352603003,3.04,138.84,138.81,3.19]
[1765352603906,3.087929,138.84,138.81,3.24456878]
[1765352609507,3.087929,138.84,138.81,9.72826878]
[1765352609706,3.087929,138.84,138.82,3.31]
[1765352614709,3.1,138.88,138.84,3.31]
[1765352614905,3.1,138.88,138.85,3.31]
[1765352615611,3.1,138.88,138.85,3.35859137]
[1765352624413,3.1,138.9,138.85,3.35859137]
[1765352625623,3.1,138.89,138.85,3.35859137]
[1765352627612,3.1,138.88,138.85,3.35859137]
[1765352628525,3.1,138.88,138.86,3.31]
[1765352631432,3.1,138.9,138.86,3.31]
[1765352631724,3.1,138.9,138.88,3.31]
[1765352636134,3.1,138.9,138.88,5.01635873]
[1765352636830,3.1,138.92,138.89,3.31]
[1765352637537,3.1,138.92,138.88,5.01635873]
[1765352640734,4.98635873,138.91,138.87,0.05236413]
[1765352641040,4.98635873,138.88,138.87,0.05236413]
[1765352642237,3.28,138.88,138.87,0.05236413]
[1765352650143,3.01,138.86,138.83,3.32]
[1765352651229,3.05954086,138.86,138.83,10.08530092]
[1765352653445,3.05954086,138.86,138.83,3.37521197]
[1765352674863,3.27,138.85,138.83,3.37521197]
[1765352676267,3.27,138.85,138.83,0.05521197]
[1765352680668,9.752,138.85,138.83,0.05521197]
[1765352680863,3.27,138.84,138.83,0.05521197]
[1765352685568,64.51,138.84,138.83,0.05521197]
[1765352691492,6.482,138.85,138.83,3.12521197]
[1765352691784,70.992,138.85,138.83,3.12521197]
[1765352692381,3.27,138.84,138.83,3.12521197]
[1765352692780,3.27,138.84,138.83,0.05521197]
[1765352700292,3.12,138.82,138.79,16.20870753]
[1765352700494,3.12,138.82,138.79,3.21]
[1765352700993,61.24,138.85,138.78,3.21]
[1765352700994,3.12,138.81,138.78,3.21]
[1765352701193,3.12,138.81,138.78,3.26367888]
[1765352701397,3.17049517,138.81,138.78,3.26367888]
[1765352703394,3.12,138.8,138.78,3.26367888]
[1765352705695,3.12,138.8,138.78,0.05367888]
[1765352706598,3.12,138.8,138.78,3.26367888]
[1765352706798,3.12,138.8,138.78,0.05367888]
[1765352707000,9.6044,138.8,138.78,0.05367888]
[1765352707293,3.23,138.79,138.78,0.05367888]
[1765352707499,3.23,138.79,138.78,3.12367888]
[1765352707899,3.23,138.79,138.78,0.05367888]
[1765352709801,66.22573873,138.81,138.78,3.12367888]
[1765352709996,0.05049517,138.81,138.78,7.12367888]
[1765352710202,0.05049517,138.81,138.79,3.07]
[1765352712100,3.28049517,138.81,138.79,3.07]
[1765352715904,3.28049517,138.81,138.78,0.05367888]
[1765352716108,3.28049517,138.81,138.78,3.12367888]
[1765352717501,3.28049517,138.81,138.79,3.07]
[1765352719414,0.05049517,138.81,138.79,3.07]
[1765352719618,9.7113,138.87,138.81,3.07]
[1765352719910,3.23,138.86,138.81,3.07]
[1765352720514,3.23,138.86,138.83,3.07]
[1765352720713,3.27719709,138.85,138.83,3.07]
[1765352721608,3.27719709,138.85,138.82,0.04776995]
[1765352724512,3.27719709,138.85,138.82,3.11776995]
[1765352730517,0.04719709,138.85,138.82,3.11776995]
[1765352730714,3.13719709,138.85,138.82,3.11776995]
[1765352731220,3.09,138.84,138.82,0.04776995]
[1765352731719,11.27764356,138.84,138.82,0.04776995]
[1765352731922,3.09,138.83,138.82,0.04776995]
[1765352732121,1.75244065,138.85,138.82,3.34776995]
[1765352732316,3.09,138.84,138.82,3.34776995]
[1765352733618,3.13719709,138.85,138.82,3.34776995]
[1765352747227,6.68207359,138.94,138.84,102.53864356]
[1765352747530,3.09,138.94,138.88,3.3]
[1765352747829,61.24,138.95,138.89,9.7797]
[1765352748134,3.09,138.98,138.91,3.3]
[1765352748329,4.79524356,138.98,138.93,0.04941147]
[1765352748525,161.9663,139.0,138.93,0.04941147]
[1765352748526,3.09,138.95,138.93,0.04941147]
[1765352753537,1.70524356,138.94,138.93,0.04941147]
[1765352753751,3.09,138.93,138.88,3.3]
[1765352754035,62.66,138.95,138.83,76.36952293]
[1765352754036,3.09,138.9,138.86,3.3]
[1765352754637,0.05231144,138.89,138.87,3.34977953]
[1765352755534,3.14231144,138.89,138.87,3.34977953]
[1765352755741,4.847555,138.89,138.87,0.04977953]
[1765352755942,3.09,138.88,138.87,0.04977953]
[1765352767443,3.07,138.87,138.81,4.0]
[1765352767753,3.07,138.87,138.79,7.15]
[1765352768539,3.07,138.83,138.82,0.05064441]
[1765352773153,3.11956435,138.84,138.82,0.05064441]
[1765352775455,3.01,138.83,138.82,0.05064441]
[1765352779650,0.04956435,138.84,138.82,3.28064441]
[1765352779845,3.05956435,138.84,138.82,0.05064441]
[1765352783056,9.54216435,138.84,138.82,0.05064441]
[1765352783262,3.01,138.83,138.82,0.05064441]
[1765352786164,3.05956435,138.84,138.82,3.28064441]
[1765352786863,3.05956435,138.84,138.82,0.05064441]
[1765352788868,9.54206435,138.84,138.82,0.05064441]
[1765352789169,3.01,138.83,138.82,0.05064441]
[1765352789669,64.25,138.83,138.82,0.05064441]
[1765352792858,61.24,138.83,138.82,0.05064441]
[1765352793165,61.24,138.83,138.82,3.29064441]
[1765352794760,64.32,138.83,138.82,0.05064441]
[1765352801260,64.32,138.83,138.82,6.75028883]
[1765352806472,64.32,138.83,138.82,0.05064441]
[1765352806773,64.32,138.83,138.82,6.75028883]
[1765352808372,61.24,138.83,138.82,9.99028883]
[1765352808573,61.24,138.83,138.82,6.75028883]
[1765352808874,64.32,138.83,138.82,6.75028883]
[1765352810174,64.32,138.83,138.82,0.05064441]
[1765352815074,64.32,138.83,138.82,9.04935194]
[1765352815875,64.32,138.83,138.82,0.05064441]
[1765352816380,64.32,138.83,138.82,9.04935194]
[1765352817677,61.24,138.83,138.82,12.28935194]
[1765352817878,0.04956435,138.84,138.83,3.24]
[1765352818681,0.04956435,138.84,138.83,12.23870753]
[1765352820271,3.14956435,138.84,138.83,8.99870753]
[1765352822078,3.14956435,138.84,138.82,9.04935194]
[1765352822383,3.14956435,138.84,138.83,6.74223849]
[1765352822582,3.14956435,138.84,138.83,6.74203014]
[1765352824785,4.85418773,138.84,138.83,6.74203014]
[1765352826386,3.1,138.83,138.82,6.79267455]
[1765352826683,3.1,138.83,138.82,0.05064441]
[1765352829486,3.1,138.83,138.82,6.79341999]
[1765352840495,72.76678773,138.84,138.82,9.80341999]
[1765352840696,69.47678773,138.84,138.83,3.01]
[1765352841001,72.76678773,138.84,138.82,9.80341999]
[1765352842606,3.29,138.83,138.82,6.79341999]
[1765352843507,0.04956435,138.84,138.83,3.01]
[1765352843698,0.04956435,138.84,138.83,9.75107453]
[1765352845699,61.24,138.86,138.84,3.01]
[1765352846009,61.24,138.86,138.85,3.01]
[1765352849312,61.24,138.86,138.84,6.74037678]
[1765352849506,3.33,138.85,138.84,6.74037678]
[1765352852111,69.42622338,138.86,138.85,3.04]
[1765352852311,72.75622338,138.86,138.84,9.78037678]
[1765352856708,3.33,138.85,138.84,6.74037678]
[1765352856908,3.33,138.85,138.83,6.74037678]
[1765352857112,3.33,138.84,138.83,6.74037678]
[1765352857813,3.33,138.84,138.82,12.08935194]
[1765352859416,9.8122,138.85,138.83,3.04]
[1765352859609,9.8122,138.85,138.84,6.73645067]
[1765352860016,3.33,138.85,138.84,6.73645067]
[1765352871735,3.33,138.84,138.83,6.73645067]
[1765352873131,5.03382717,138.84,138.83,6.73645067]
[1765352874239,3.33,138.83,138.82,0.05064441]
[1765352874439,0.04543289,138.84,138.83,3.04]
[1765352874641,0.04543289,138.84,138.83,9.7768885]
[1765352875542,3.37543289,138.84,138.83,6.7368885]
[1765352875941,5.07926006,138.84,138.83,6.7368885]
[1765352877746,5.07926006,138.84,138.83,6.73815013]
[1765352879448,3.37543289,138.84,138.83,6.73815013]
[1765352880642,0.04543289,138.84,138.83,9.95815013]
[1765352881947,3.29543289,138.84,138.83,6.73815013]
[1765352882944,3.29543289,138.84,138.83,6.74075713]
[1765352883647,0.04543289,138.84,138.83,9.96075713]
[1765352884349,0.04543289,138.84,138.83,3.22]
[1765352886852,61.24,138.86,138.84,3.22]
[1765352887157,61.24,138.86,138.85,3.22]
[1765352887850,61.24,138.86,138.85,12.20811886]
[1765352888757,64.31,138.86,138.85,8.98811886]
[1765352889070,64.31,138.86,138.84,12.15811886]
[1765352889356,61.24,138.86,138.85,9.90924371]
[1765352889561,61.24,138.86,138.85,3.17]
[1765352890456,67.7216,138.86,138.85,3.17]
[1765352892873,70.7916,138.86,138.84,12.15811886]
[1765352893059,9.552,138.85,138.83,12.15811886]
[1765352893367,9.552,138.85,138.84,6.73715551]
[1765352895071,3.07,138.85,138.84,6.73715551]
[1765352896874,64.31,138.85,138.84,6.73715551]
[1765352905892,3.07,138.87,138.85,3.17]
[1765352906190,64.31,138.87,138.85,3.17]
[1765352906491,64.31,138.87,138.85,9.90715551]
[1765352916506,64.31,138.87,138.86,6.73715551]
[1765352919095,64.31,138.87,138.85,3.21855271]
[1765352919096,64.31,138.87,138.85,9.95570822]
[1765352919400,64.31,138.87,138.86,6.73715551]
[1765352927497,9.7314,138.86,138.85,0.04855271]
[1765352928297,9.7314,138.86,138.84,4.2792097]
[1765352928499,3.25,138.83,138.81,8.98811886]
[1765352929097,3.25,138.83,138.81,12.31811886]
[1765352929406,3.29554242,138.83,138.81,12.37119581]
[1765352931108,3.29554242,138.83,138.81,3.38307695]
[1765352933593,6.52854242,138.83,138.81,0.05307695]
[1765352933799,3.25,138.82,138.81,0.05307695]
[1765352957127,64.49,138.82,138.81,0.05307695]
[1765352969635,66.19482172,138.82,138.81,0.05307695]
[1765352970827,0.04554242,138.83,138.81,3.10307695]
[1765352971027,6.4822,138.85,138.81,3.10307695]
[1765352971231,61.26,138.87,138.83,3.05]
[1765352971533,3.03,138.91,138.86,3.05]
[1765352971738,3.03,138.9,138.86,3.05]
[1765352971925,9.5097,138.9,138.88,3.05]
[1765352972731,9.5097,138.9,138.87,0.05309001]
[1765352972732,3.03,138.89,138.87,3.10309001]
[1765352973326,6.4797,138.9,138.87,3.10309001]
[1765352973525,61.26,138.91,138.87,3.10309001]
[1765352973526,70.7692,138.91,138.87,3.10309001]
[1765352974932,1.70482172,138.9,138.87,3.10309001]
[1765352977532,1.70482172,138.9,138.88,3.05]
[1765352977941,4.73482172,138.9,138.88,3.05]
[1765352985161,4.73482172,138.9,138.88,9.5303]
[1765352986758,1.70482172,138.92,138.89,3.05]
[1765352986960,3.03,138.91,138.89,3.05]
[1765352987151,61.22,138.93,138.88,6.4803]
[1765352987152,6.4771,138.96,138.91,3.05]
[1765352987350,3.03,138.95,138.92,3.09693935]
[1765352990260,61.22,138.98,138.92,0.04693935]
[1765352990261,3.03,138.93,138.92,0.04693935]
[1765352996862,4.73482172,138.94,138.92,3.09693935]
[1765352997161,3.03,138.94,138.92,3.09693935]
[1765353000368,4.79482172,138.96,138.92,3.09693935]
[1765353000662,3.09,138.95,138.92,3.09693935]
[1765353000854,3.09,138.95,138.92,3.24693935]
[1765353003859,4.79482172,138.96,138.93,3.2]
[1765353004258,3.09,138.96,138.94,3.2]
[1765353004467,3.09,138.97,138.94,3.2]
[1765353008969,3.23,138.96,138.94,3.2]
[1765353009264,3.23,138.96,138.93,7.03]
[1765353010065,3.23,138.96,138.93,4.0]
[1765353010262,3.23,138.96,138.92,3.07693935]
[1765353010464,9.7069,138.96,138.92,3.07693935]
[1765353010660,3.23,138.95,138.92,3.07693935]
[1765353010971,3.23,138.93,138.92,0.04693935]
[1765353011861,2.65794778,138.94,138.92,3.07693935]
[1765353012064,3.23,138.94,138.92,3.07693935]
[1765353013370,3.23,138.94,138.92,0.04693935]
[1765353015068,3.23,138.93,138.92,0.04693935]
[1765353019474,9.13584778,138.94,138.92,3.07693935]
[1765353019668,3.23,138.95,138.92,3.07693935]
[1765353019872,3.23,138.95,138.93,3.03]
[1765353020065,3.23,138.96,138.93,3.03]
[1765353024982,64.43,138.98,138.94,3.03]
[1765353025188,64.43,138.98,138.95,3.03]
[1765353025389,64.43,138.98,138.95,3.08054727]
[1765353025683,3.23,138.97,138.95,0.05054727]
[1765353028886,3.23,138.97,138.95,3.08054727]
[1765353030090,64.45,138.98,138.95,3.08054727]
[1765353031279,3.25,138.97,138.95,3.08054727]